Cogmind - Beta 14 @@@ ROGUE MODE // 2024.08.16 @ 23:04:53 Player: saltine Result: Self-destructed Performance ------------- Evolutions (2) 1000 Regions Visited (5) 1000 Robots Destroyed (109) 545 Value Destroyed (2405) 2405 Prototype IDs (2) 40 Alien Tech Used (0) 0 Bonus (309) 309 TOTAL SCORE: 5299 Bonus ------- High Alert Combat Kills 413 Follower Combat Kills 25 Friendly Fire -129 Cogmind --------- Core Integrity 550/550 Matter 279/300 Energy 265/265 System Corruption 0% Temperature Cool (0) Movement Treading (240) Ox1 Location -8/Materials Parts ------- > --- POWER (1) -------- Reinforced Ion Engine > --- PROPULSION (4) --- Light Treads Light Treads Light Treads Improved Treads > --- UTILITY (4) ------ Huge Storage Unit Targeting Computer Medium Armor Plating Hacking Suite > --- WEAPON (2) ------- Advanced Beam Cannon Improved Light Cannon (fused) > --- INVENTORY (25) --- Improved Ion Engine Light Treads Light Treads Light Treads Light Treads Light Treads Cooling System Large Matter Pod (150) Targeting Computer Light Armor Plating Light Armor Plating Tractor Beam Pulse Rifle Pulse Rifle Heavy Assault Rifle Improved Light Cannon Improved Light Cannon Improved Light Cannon Rocket Launcher Rocket Launcher Mini Grenade Launcher Mini Grenade Launcher Mini Grenade Launcher Mini Grenade Launcher Peak State ------------ > --- POWER ------------ Reinforced Ion Engine > --- PROPULSION ------- Light Treads Light Treads Light Treads Improved Treads > --- UTILITY ---------- Huge Storage Unit Targeting Computer Medium Armor Plating Hacking Suite > --- WEAPON ----------- Advanced Beam Cannon Improved Light Cannon > --- INVENTORY -------- Improved Ion Engine Light Treads Light Treads Light Treads Light Treads Light Treads Cooling System Large Matter Pod Targeting Computer Light Armor Plating Light Armor Plating Tractor Beam Pulse Rifle Pulse Rifle Heavy Assault Rifle Improved Light Cannon Improved Light Cannon Improved Light Cannon Rocket Launcher Rocket Launcher Mini Grenade Launcher Mini Grenade Launcher Mini Grenade Launcher Mini Grenade Launcher [Rating: 23] Favorites ----------- Power Reinforced Ion Engine Engine Reinforced Ion Engine Propulsion Light Treads Treads Light Treads Leg Aluminum Leg Utility Targeting Computer Device Improved Heat Sink Storage Huge Storage Unit Processor Targeting Computer Hackware Hacking Suite Protection Medium Armor Plating Weapon Improved Light Cannon Energy Gun Spread Laser Energy Cannon Advanced Beam Cannon Ballistic Gun Light Assault Rifle Ballistic Cannon Improved Light Cannon Launcher Mini Grenade Launcher Build | -11 -10 -10 -9 -9 -8 ------- Run | Yrd Mat Min Mat Min Mat Slots Evolved 4 | . . . 2 . 2 Power . | . . . . . . Propulsion 2 | . . . 1 . 1 Utility 2 | . . . 1 . 1 Weapon . | . . . . . . Parts Attached 74 | 3 8 4 50 5 4 Power 4 | . 2 1 . 1 . Engine 4 | . 2 1 . 1 . Core . | . . . . . . Reactor . | . . . . . . Propulsion 17 | 2 2 2 7 3 1 Treads 17 | 2 2 2 7 3 1 Leg . | . . . . . . Wheel . | . . . . . . Hover . | . . . . . . Flight . | . . . . . . Utility 23 | . 2 . 19 1 1 Device 9 | . . . 9 . . Storage 2 | . 1 . 1 . . Processor 1 | . 1 . . . . Hackware 1 | . . . . . 1 Protection 10 | . . . 9 1 . Artifact . | . . . . . . Weapon 30 | 1 2 1 24 . 2 Energy Gun 3 | . . . 3 . . Energy Cannon 4 | . . . 2 . 2 Ballistic Gun 3 | 1 1 . 1 . . Ballistic Cannon 9 | . 1 1 7 . . Launcher 11 | . . . 11 . . Special Weapon . | . . . . . . Impact Weapon . | . . . . . . Slashing Weapon . | . . . . . . Piercing Weapon . | . . . . . . Special Melee Weapon . | . . . . . . Unidentified Prototypes 2 | . . . 2 . . Parts Lost 8 | . 3 5 . . . Power 2 | . 1 1 . . . Propulsion 3 | . 1 2 . . . Utility . | . . . . . . Weapon 3 | . 1 2 . . . Highest Loss Streak 2 | . 2 2 . . . To Critical Strikes . | . . . . . . Average Slot Usage (%) 98 | . 97 98 98 100 95 Engine 11 | . 13 14 11 11 9 Treads 31 | . 28 27 32 33 36 Device 2 | . . . 3 3 . Storage 11 | . 14 14 11 11 9 Processor 11 | . 12 14 11 11 9 Protection 5 | . . . 7 7 9 Energy Gun 1 | . . . 2 . . Energy Cannon 3 | . . . 2 11 9 Ballistic Gun 4 | . 18 13 . . . Ballistic Cannon 8 | . 9 14 7 11 9 Launcher 5 | . . . 9 . . Peak Build Rating 23 | 6 10 10 19 20 23 Average Rating 14 | 6 8 9 16 19 21 On Entrance 11 | 6 6 10 8 19 19 Naked Turns . | . . . . . . Heaviest Build 105 | 11 34 34 105 105 105 Greatest Support 83 | 40 40 40 60 63 83 Greatest Overweight (x) 1 | . . . 1 1 1 Average Overweight (x) . | . . . . 1 1 Largest Inventory Capacity 25 | 8 15 15 25 25 25 Average Capacity 21 | 8 9 15 24 25 25 Most Carried 25 | 6 15 15 25 25 24 Average Carried 20 | 4 7 14 23 24 24 Final Capacity 25 | 8 15 15 25 25 25 Final Carried 25 | 5 15 12 25 25 24 Class Distribution -------------------- 72% | Mutant 27% | Scavenger-Mutant Dominant Class ---------------- Mutant | -10/Materials Mutant | -10/Mines Mutant | -9/Materials Mutant | -9/Mines Scavenger-Mutant | -8/Materials Resources | -11 -10 -10 -9 -9 -8 ----------- Run | Yrd Mat Min Mat Min Mat Matter Collected 2634 | 238 387 57 1490 443 19 Remotely 728 | . . . 728 . . Salvage Created 2652 | 93 676 28 1571 284 . Parts 205 | 3 42 3 143 14 . Haulers Intercepted 6 | . 2 . 4 . . Recyclers Shooed 3 | 1 1 . 1 . . Parts Field Recycled . | . . . . . . Retrieved Matter . | . . . . . . Parts Self-Destructed . | . . . . . . Prevented . | . . . . . . Kills | -11 -10 -10 -9 -9 -8 ------- Run | Yrd Mat Min Mat Min Mat Combat Hostiles Destroyed 72 | . 12 3 51 6 . Guns 12 | . 7 . 5 . . Cannons 19 | . 5 2 7 5 . AOE 39 | . . . 39 . . Classes Destroyed 14 | 1 5 2 5 1 . Worker 10 | . 1 . 8 1 . Builder 12 | . 1 . 11 . . Tunneler 3 | . . 1 1 1 . Hauler 6 | . 2 . 4 . . Recycler 6 | 1 2 . 2 1 . Mechanic 3 | . . . 3 . . Watcher 2 | . . . 2 . . Swarmer 14 | . 3 1 10 . . Grunt 44 | . 9 . 30 5 . Brawler 1 | . . . . 1 . Duelist 2 | . . . 2 . . Protector 3 | . . . 3 . . Sentry 6 | . . . 6 . . Demolisher 1 | . . 1 . . . Best Kill Streak 12 | 1 5 1 12 2 . Combat Bots Only 8 | . 5 1 8 2 . Max Kills in Single Turn 4 | 1 2 1 4 1 . Gunslinging 1 | . 1 . . . . Exploded 3 | . . . 3 . . Melee . | . . . . . . Uniques/NPCs Destroyed 1 | . . 1 . . . YI-UF0 (-10/Mines) Combat | -11 -10 -10 -9 -9 -8 -------- Run | Yrd Mat Min Mat Min Mat Hostile Shots Fired 231 | . 68 28 113 22 . Missed 70 | . 20 5 39 6 . Damage Taken 2559 | . 600 716 1032 211 . Core 279 | . 102 63 87 27 . Absorbed by Shields . | . . . . . . Regen/Repaired (Parts) 181 | . 135 . 46 . . Core Remaining (%) 68 | 100 . 34 . 71 . Volleys Fired 181 | 2 51 19 90 19 . Largest 2 | 2 2 2 2 2 . Hottest 107 | 40 55 55 107 107 . Shots Fired 328 | 4 102 38 145 39 . Gun 134 | 4 84 19 27 . . Cannon 137 | . 18 19 61 39 . Launcher 57 | . . . 57 . . Special . | . . . . . . Kinetic 219 | 4 102 38 55 20 . Thermal 52 | . . . 33 19 . Explosive 57 | . . . 57 . . Electromagnetic . | . . . . . . Robot Hit Streak 20 | 3 10 4 8 20 . Robot Miss Streak 6 | . 3 3 6 1 . Penetration Max . | . . . . . . Secondary Targets 1 | . 1 . . . . Max Gunslinging Chain 1 | . 1 . . . . Shots Hit Robots 208 | 3 66 21 86 32 . Core Hits 193 | 2 31 6 144 10 . Critical Kills 2 | . 1 . . 1 . Critical Parts Destroyed . | . . . . . . Critical Strikes 5 | . 2 1 1 1 . Meltdown 1 | . . . . 1 . Destroy 1 | . 1 . . . . Blast 3 | . 1 1 1 . . Melee Attacks . | . . . . . . Impact . | . . . . . . Slashing . | . . . . . . Piercing . | . . . . . . Sneak Attacks . | . . . . . . Combat Hostiles . | . . . . . . Follow-up Attacks . | . . . . . . Damage Inflicted 7131 | 28 791 275 5336 701 . Guns 985 | 28 508 78 371 . . Cannons 1953 | . 238 197 817 701 . Explosions 4193 | . 45 . 4148 . . Melee . | . . . . . . Ramming . | . . . . . . Kinetic 2105 | 28 746 275 734 322 . Thermal 833 | . . . 454 379 . Explosive 4148 | . . . 4148 . . Electromagnetic 45 | . 45 . . . . Impact . | . . . . . . Slashing . | . . . . . . Piercing . | . . . . . . Highest Corruption 3 | . . . 3 3 . Average Corruption 2 | . . . 2 3 . Corruption Purged . | . . . . . . Corruption Blocked . | . . . . . . Effects 92 | . . . 67 25 . Message Errors 22 | . . . 19 3 . Matter Fused 16 | . . . 8 8 . Heat Flow Errors 19 | . . . 13 6 . Energy Discharges 8 | . . . 6 2 . Parts Fused 2 | . . . 1 1 . Data Loss (minor) 9 | . . . 7 2 . Data Loss (major) 3 | . . . 2 1 . Misfires 7 | . . . 6 1 . Alerts 3 | . . . 2 1 . Weapon Failures 3 | . . . 3 . . Overload Shots . | . . . . . . Overflow Damage 107 | . . . 107 . . Projectiles . | . . . . . . Explosions 107 | . . . 107 . . Melee . | . . . . . . Knockbacks 19 | . 3 5 6 5 . Impact . | . . . . . . Kinetic 19 | . 3 5 6 5 . Secondary . | . . . . . . Self-Inflicted Damage 121 | . 24 . 97 . . Shots 6 | . 1 . 5 . . Rammed . | . . . . . . Targets Rammed . | . . . . . . Kicked . | . . . . . . Crushed . | . . . . . . Highest Temperature 369 | . 55 56 369 348 . Average Temperature 85 | . 17 25 100 94 . Received Heat Transfer 717 | . 261 . 315 141 . Effects 5 | . . . 4 1 . Shutdowns 1 | . . . 1 . . Energy Bleed 3 | . . . 3 . . Short Circuit 1 | . . . . 1 . Siege Activations . | . . . . . . Robots Corrupted . | . . . . . . Combat Hostiles . | . . . . . . Parts Fried 5 | . . . 5 . . Impact Corruptions . | . . . . . . Robots Melted 1 | . . . . 1 . Combat Hostiles 1 | . . . . 1 . Parts Melted 2 | . . . . 2 . Heat Transferred 1325 | . . . 659 666 . Parts Sabotaged . | . . . . . . Parts Stolen . | . . . . . . Parts Stripped . | . . . . . . Power Chain Reactions . | . . . . . . Alert | -11 -10 -10 -9 -9 -8 ------- Run | Yrd Mat Min Mat Min Mat Peak Influence 1038 | 5 196 84 1038 535 66 Initial 399 | . 3 9 24 399 61 Average 381 | 3 85 39 536 323 65 Maximum Alert Level 3 | . 1 . 3 2 . Low Security (%) 30 | 100 99 100 4 16 100 Level 1 33 | . . . 42 54 . Level 2 17 | . . . 21 28 . Level 3 17 | . . . 31 . . Level 4 . | . . . . . . Level 5 . | . . . . . . High Security . | . . . . . . Max Security . | . . . . . . Sterilizations 1 | . . . 1 . . Squads Dispatched 11 | . 1 . 10 . . Investigation 3 | . . . 3 . . Extermination . | . . . . . . Reinforcement 3 | . 1 . 2 . . Assault 5 | . . . 5 . . Garrison . | . . . . . . Intercept . | . . . . . . Searches Triggered . | . . . . . . Construction Impeded 2 | . . . 2 . . Haulers Reinforced . | . . . . . . Active Scanning Responses . | . . . . . . Cargo Convoy Interrupts . | . . . . . . Stealth | -11 -10 -10 -9 -9 -8 --------- Run | Yrd Mat Min Mat Min Mat Distress Signals 5 | . 2 . 3 . . Communications Jammed . | . . . . . . Distress Signals . | . . . . . . Times Spotted 108 | . 26 8 68 6 . Peak Tracking Total 6 | . 5 3 6 3 . Tactical Retreats 4 | . 1 2 1 . . Traps | -11 -10 -10 -9 -9 -8 ------- Run | Yrd Mat Min Mat Min Mat Traps Triggered 7 | . 2 . 5 . . Indirectly . | . . . . . . Trap Hack Attempts . | . . . . . . Triggered . | . . . . . . Disarmed . | . . . . . . Reprogrammed 4 | . . . 4 . . Reused 2 | . . . 2 . . Traps Extracted . | . . . . . . Installed . | . . . . . . Triggered 2 | . . . 2 . . Machines | -11 -10 -10 -9 -9 -8 ---------- Run | Yrd Mat Min Mat Min Mat Machines Disabled 7 | . 1 . 5 1 . Max in Single Turn 2 | . 1 . 2 1 . Machines Repaired . | . . . . . . Machines Dismantled . | . . . . . . Machines Sabotaged . | . . . . . . Overloaded Fab Kills . | . . . . . . Hacking | -11 -10 -10 -9 -9 -8 --------- Run | Yrd Mat Min Mat Min Mat Machines Accessed 15 | . 9 . 6 . . Terminals 11 | . 7 . 4 . . Fabricators . | . . . . . . Repair Stations 2 | . 1 . 1 . . Recycling Units 2 | . 1 . 1 . . Scanalyzers . | . . . . . . Garrison Access . | . . . . . . Total Hacks 41 | . 27 . 14 . . Successful 18 | . 11 . 7 . . Failed 22 | . 15 . 7 . . Catastrophic 3 | . 3 . . . . Database Lockouts 1 | . 1 . . . . Manual 26 | . 18 . 8 . . Terminals 33 | . 23 . 10 . . Fabricators . | . . . . . . Repair Stations 3 | . 2 . 1 . . Recycling Units 5 | . 2 . 3 . . Scanalyzers . | . . . . . . Garrison Access . | . . . . . . Terminal Hacks 11 | . 6 . 5 . . Robot Analysis 2 | . 2 . . . . Terminal Index 1 | . 1 . . . . Locate Traps 2 | . 1 . 1 . . Reprogram Traps 1 | . . . 1 . . Transport Status 3 | . 2 . 1 . . Zone Layout 2 | . . . 2 . . Fabricator Hacks . | . . . . . . Repair Station Hacks 2 | . 2 . . . . Scan Component 1 | . 1 . . . . Repair 1 | . 1 . . . . Recycling Unit Hacks . | . . . . . . Scanalyzer . | . . . . . . Garrison Access Hacks . | . . . . . . Unauthorized Hacks 5 | . 3 . 2 . . Terminals 2 | . 2 . . . . Botnet 1 | . 1 . . . . Operators 1 | . 1 . . . . Fabricators . | . . . . . . Repair Stations 1 | . . . 1 . . Patch 1 | . . . 1 . . Recycling Units 2 | . 1 . 1 . . Mask 2 | . 1 . 1 . . Scanalyzers . | . . . . . . Garrison Access . | . . . . . . Data Cores Recovered 1 | . . . . . 1 Used . | . . . . . . Hacking Detections 13 | . 8 . 5 . . Full Trace Events 4 | . 2 . 2 . . Feedback Events . | . . . . . . Feedback Blocked . | . . . . . . Robot Schematics Acquired . | . . . . . . Robots Built . | . . . . . . Authchips . | . . . . . . Time . | . . . . . . Total Robot Build Rating . | . . . . . . Part Schematics Acquired . | . . . . . . Parts Built . | . . . . . . Authchips . | . . . . . . Time . | . . . . . . Total Part Build Rating . | . . . . . . Parts Repaired 1 | . 1 . . . . Time 26 | . 26 . . . . Parts Recycled . | . . . . . . Recycled Matter . | . . . . . . Retrieved Matter . | . . . . . . Retrieved Components . | . . . . . . Parts Scanalyzed . | . . . . . . Part Schematics Acquired . | . . . . . . Parts Damaged . | . . . . . . Bothacking | -11 -10 -10 -9 -9 -8 ------------ Run | Yrd Mat Min Mat Min Mat Used RIF Installer . | . . . . . . Robots Hacked . | . . . . . . Non-combat . | . . . . . . Combat . | . . . . . . Robot Hacks Applied . | . . . . . . Relay Couplers Released . | . . . . . . Fabnet Peak Effective % . | . . . . . . Robots Rewired . | . . . . . . Allies Hacked . | . . . . . . Hacks Repelled . | . . . . . . Allies | -11 -10 -10 -9 -9 -8 -------- Run | Yrd Mat Min Mat Min Mat Total Allies 3 | . . . . 3 . Largest Group 3 | . . . . 3 3 Highest-Rated Group 40 | . . . . 40 40 Highest-Rated Ally 16 | . . . . 16 16 Total Orders . | . . . . . . Ally Attacks 7 | . . . . 6 1 Total Damage 47 | . . . . 29 18 Kills 2 | . . . . 1 1 Allies Corrupted . | . . . . . . Allies Melted . | . . . . . . Intel | -11 -10 -10 -9 -9 -8 ------- Run | Yrd Mat Min Mat Min Mat Robot Analysis Total 2 | . 2 . . . . Derelict Logs Recovered 1 | . . . . 1 . Drone Launches . | . . . . . . Drone Recoveries . | . . . . . . Exploration | -11 -10 -10 -9 -9 -8 ------------- Run | Yrd Mat Min Mat Min Mat Turns Passed 7380 | 30 1381 365 4164 1387 53 Spaces Moved 2467 | 12 745 185 956 550 19 Core . | . . . . . . Treads 2467 | 12 745 185 956 550 19 Legs . | . . . . . . Wheels . | . . . . . . Hover . | . . . . . . Flight . | . . . . . . Fastest Speed 160 | 160 160 160 160 240 240 Average Speed 203 | 160 160 160 225 240 240 Slowest Speed 240 | 160 160 160 240 240 240 Overloaded Moves . | . . . . . . Propulsion Burnouts . | . . . . . . Robots Hopped . | . . . . . . Cave-ins Triggered . | . . . . . . Exploration Rate (%) 44 | 3 95 31 46 91 3 Regions Visited 5 Branch Regions 2 Pre-discovered Areas 1 | . . . . 1 . Known Exits Taken . | . . . . . . Unknown Exits Taken 5 | 1 1 1 1 1 . Scrap Searched 4 | . . 1 . 3 . Spaces Dug 10 | . . . 10 . . Terrain Destroyed 273 | . . . 272 1 . Melee . | . . . . . . Projectile 6 | . . . 5 1 . AOE 267 | . . . 267 . . Terrain Rammed . | . . . . . . Walls Destroyed . | . . . . . . Machines Disabled . | . . . . . . Actions | -11 -10 -10 -9 -9 -8 --------- Run | Yrd Mat Min Mat Min Mat Total 4513 | 19 848 220 2818 583 25 Wait 1691 | . 12 10 1669 . . Move 2462 | 11 744 184 955 549 19 Hop . | . . . . . . Pick Up 61 | 1 23 2 31 4 . Fast Attach 12 | . 1 . 8 . 3 Attach 13 | . 5 4 2 1 1 Detach . | . . . . . . Swap 49 | 3 2 . 40 4 . Drop 44 | 2 10 1 23 6 2 Fire 181 | 2 51 19 90 19 . Melee . | . . . . . . Ram . | . . . . . . Kick . | . . . . . . Crush . | . . . . . . Escape Stasis . | . . . . . . Rewire . | . . . . . . Trap . | . . . . . . Miscellaneous . | . . . . . . Route ------- -11/Scrapyard -10/Materials (discovered 5 exits: *Mat x3 / [*Min x2]) -10/Mines (discovered 2 exits: *Mat x2) -9/Materials (discovered 4 exits: *Mat / [*Min x2] / [*Sto]) -9/Mines (discovered 3 exits: *Mat x2 / [*Zio]) -8/Materials History --------- Turn | Location | Event 13 | -11/Scrapyard | Discovered new exit (range 3) 31 | -11/Scrapyard | Entered Materials 239 | -10/Materials | Discovered new exit (range 15) 319 | -10/Materials | Build established: Mutant 519 | -10/Materials | Central database locked down 663 | -10/Materials | Discovered new exit (range 12) 754 | -10/Materials | Discovered new exit (range 10) 892 | -10/Materials | Repaired Lgt. Treads 1006 | -10/Materials | Discovered new exit (range 16) 1102 | -10/Materials | Discovered new exit (range 13) 1412 | -10/Materials | Entered Mines 1449 | -10/Mines | Discovered new exit (range 10) 1452 | -10/Mines | Assembled infested the area 1509 | -10/Mines | Met a Derelict bent on vengeance 1582 | -10/Mines | Core integrity fell below 50% 1703 | -10/Mines | YI-UF0 nonchalantly dropped a Grenade Launcher on the ground 1744 | -10/Mines | Discovered new exit (range 3) 1768 | -10/Mines | Destroyed YI-UF0 1777 | -10/Mines | Entered Materials 1777 | -9/Materials | Evolved 2 slots: Propulsion x1, Utility x1 1900 | -9/Materials | Discovered new exit (range 7) 2278 | -9/Materials | Discovered new exit (range 10) 2620 | -9/Materials | Discovered new exit (range 15) 2870 | -9/Materials | Discovered new exit (range 13) 3777 | -9/Materials | First assault squad dispatched 3865 | -9/Materials | Destroyed 8 combat bots 4918 | -9/Materials | Build established: Scavenger-Mutant 5437 | -9/Materials | Sterilization system engaged 5437 | -9/Materials | Non-combat units ordered to evacuate 5448 | -9/Materials | Destroyed 7 combat bots 5537 | -9/Materials | Combat units ordered to evacuate 5737 | -9/Materials | Ambient heat levels rising (+10) 5887 | -9/Materials | Ambient heat levels rising (+10) 5941 | -9/Materials | Entered Mines 6208 | -9/Mines | A Derelict revealed a hidden shortcut to a safe place 6216 | -9/Mines | Assisted by bots powering up and referring to "LRC-V3" 6575 | -9/Mines | Learned location of Recycling (-9) 6654 | -9/Mines | Received a Rocket Launcher from a helpful Derelict 6663 | -9/Mines | Discovered new exit (range 6) 6710 | -9/Mines | Build established: Mutant 6960 | -9/Mines | Discovered new exit (range 11) 7328 | -9/Mines | Entered Materials 7328 | -8/Materials | Accompanied by 3 allies 7328 | -8/Materials | Evolved 2 slots: Propulsion x1, Utility x1 7381 | -8/Materials | Self-destructed Last Messages --------------- 07076_ Found Terrain Scan Processor. 07076_ Found 49 Matter. 07077_ Acquired 19 matter. 07109_ System corrupted: Heat flow error (+238). 07132_ K-01 Serf cleans the Seismic Survey Station. 07258_ System corrupted: Imp. Light Cannon fused. 07276_ System corrupted: Heat flow error (+108). PARAMETERS=PROPULSION+1,UTILITY+1 LOCATION=UNKNOWN GOAL=ESCAPE 07353_ Acquired data core, extracted dynamic key. 07358_ Acquired Hacking Suite. 07362_ Dropped Adv. Beam Cannon. 07363_ Acquired Unknown Energy Cannon. 07363_ Identified EM Pulse Cannon. 07364_ Dropped EM Pulse Cannon. 07367_ Acquired Adv. Beam Cannon. 07373_ Acquired 19 matter. 07381_ Connecting with Terminal... 07381_ Current location identified: Materials Map ----- +----------------------------------------------------+ | ??????????????????????????????????????? | | ??????????????????????????????????????? | | ??????????????????????????????????????? | | ??????????????????????????????????????? | | ??????????????????????????????????????? | | ??????????????????????????????????????? | | ??????????????????????????????????????? | | ??????????????????????????????????????? | | ??????????????????????????????????????? | | ??????????????????????????????????????? | | ??????????????????????????????????????? | | ??????????????????????????????????????? | | ??????????????????????????????????????? | | ??????????????????????????????????????? | | ??????????????????????????????????????? | | ??????????????????????????????????????? | | ??????????????????????????????????????? | | ??????????????????????????????????????? | | ??????????????????????????????????????? | | ??????????????????????????????????????? | | ??????????????????????????????????????? | | ??????????????????????????????????????? | | ??????????????????????????????????????? | | ?????????????????###########??????????? | | ?????????????????# T #??????????? | | ?????????????????# """ @*#??????????? | | ?????????????????# """ g / #??????????? | | ?????????????????# """ ] g#??????????? | | ?????????????????# """ #??????????? | | ?????????????????# r g#??????????? | | ?????????????????#] ] #??????????? | | ?????????????????# #??????????? | | ????????????############+####?????????? | | ????????? #?????????? | | ????????? #?????????? | | ????????? #?????????? | | ??????????#######+###########?????????? | | ??????????????????????????????????????? | | ??????????????????????????????????????? | | ??????????????????????????????????????? | | ??????????????????????????????????????? | | ??????????????????????????????????????? | | ??????????????????????????????????????? | | ??????????????????????????????????????? | | ??????????????????????????????????????? | | ??????????????????????????????????????? | | ??????????????????????????????????????? | | | | | | | +----------------------------------------------------+ Best States ------------- Heat Dissipation 42 Energy Generation 12 Energy Capacity 265 Matter Stores 300 Matter Capacity 300 Sight Range 16 Terrain Scan Density 10 Armor Coverage 225 Evasion (%) 40 Targeting Accuracy 5 Recoil Reduction 4 Offensive Hacking 10 Item Schematics ----------------- None Robot Schematics ------------------ None Fabricated ------------ Nothing Alien Tech Used ----------------- None Achievements -------------- None Challenges ------------ None Game ------ Seed StormModifiedCanceller Manual? 0 Play Time 00:45:47 Cumulative 143.5 hours Start 2024.08.15 @ 21:20:15 End 2024.08.16 @ 23:04:53 Sessions 4 Manual Loads 0 Difficulty Rogue Special Mode None Game No. 119 Rogue 119 Adventurer 0 Explorer 0 Win Type - Total 5 Types 2/0/2/1/0/0/0/0/0 Lore% 67 Gallery% 62 Achievement% 57 Wizard Run 0 Options --------- Layout 0 ASCII 0 Keyboard 0 Movement Arrows Keybinds 0 Fullscreen 2 Font 18/SmallcapsGlow Map View 76x50 Zoom Use 0% Tactical HUD 1 Map Filters NONE Filters NONE Steam 1 RUN: 7d63a9c9-9924-4bff-b123-6037283ffea8